[Event "Klubbmästerskap 2025 Torsdagar"]
[Site "Linköping, Sweden"]
[Date "2025.02.06"]
[Round "3.1"]
[White "Ståhlberg, Adam"]
[Black "Gustafsson, Nils"]
[Result "1-0"]
[TimeControl "90 min + 30 sec/move"]
[WhiteElo "1944"]
[BlackElo "1860"]

1. d4 {[%clk 01:29:23]} {[%emt 00:01:36]} Nf6 {[%clk 01:30:47]} {[%emt
00:00:13]} 2. c4 {[%clk 01:29:39]} {[%emt 00:00:14]} e6 {[%clk 01:31:08]}
{[%emt 00:00:09]} 3. Nf3 {[%clk 01:29:59]} {[%emt 00:00:11]} Bb4+ {[%clk
01:31:11]} {[%emt 00:00:26]} 4. Bd2 {[%clk 01:30:16]} {[%emt 00:00:14]} Qe7
{[%clk 01:31:28]} {[%emt 00:00:13]} 5. a3 {[%clk 01:30:27]} {[%emt 00:00:20]}
Bxd2+ {[%clk 01:31:46]} {[%emt 00:00:11]} 6. Nbxd2 {[%clk 01:30:24]} {[%emt
00:00:34]} d6 {[%clk 01:31:10]} {[%emt 00:01:05]} 7. e4 {[%clk 01:30:22]}
{[%emt 00:00:32]} e5 {[%clk 01:31:21]} {[%emt 00:00:19]} 8. d5 {[%clk
01:27:15]} {[%emt 00:03:37]} O-O {[%clk 01:29:24]} {[%emt 00:02:25]} 9. Bd3
{[%clk 01:26:05]} {[%emt 00:01:41]} a5 {[%clk 01:28:12]} {[%emt 00:01:42]} 10.
Nf1 {[%clk 01:23:07]} {[%emt 00:03:29]} Na6 {[%clk 01:24:15]} {[%emt 00:04:26]}
11. Ng3 {[%clk 01:22:04]} {[%emt 00:01:33]} Nc5 {[%clk 01:23:39]} {[%emt
00:01:06]} 12. Bc2 {[%clk 01:20:54]} {[%emt 00:01:41]} a4 {[%clk 01:23:40]}
{[%emt 00:00:29]} 13. Nd2 {[%clk 01:15:32]} {[%emt 00:05:51]} g6 {[%clk
01:21:04]} {[%emt 00:03:06]} 14. Qe2 {[%clk 00:46:44]} {[%emt 00:29:19]} Bd7
{[%clk 01:11:21]} {[%emt 00:10:14]} 15. O-O {[%clk 00:41:33]} {[%emt 00:05:41]}
h5 {[%clk 01:08:42]} {[%emt 00:03:09]} 16. Nf3 {[%clk 00:33:35]} {[%emt
00:08:27]} Kg7 {[%clk 01:05:06]} {[%emt 00:04:06]} 17. Qe3 {[%clk 00:24:39]}
{[%emt 00:09:27]} Nh7 {[%clk 00:41:21]} {[%emt 00:24:14]} 18. h4 {[%clk
00:24:25]} {[%emt 00:00:45]} Bg4 {[%clk 00:39:16]} {[%emt 00:02:35]} 19. Ng5
{[%clk 00:24:47]} {[%emt 00:00:08]} Nxg5 {[%clk 00:37:33]} {[%emt 00:02:14]} 20.
hxg5 {[%clk 00:25:10]} {[%emt 00:00:06]} h4 {[%clk 00:37:11]} {[%emt 00:00:52]}
21. Nh1 {[%clk 00:16:28]} {[%emt 00:09:12]} Rh8 {[%clk 00:34:53]} {[%emt
00:02:48]} 22. f3 {[%clk 00:16:49]} {[%emt 00:00:10]} Bd7 {[%clk 00:34:35]}
{[%emt 00:00:45]} 23. g4 {[%clk 00:13:56]} {[%emt 00:03:26]} hxg3 {[%clk
00:31:39]} {[%emt 00:03:26]} 24. Nxg3 {[%clk 00:14:10]} {[%emt 00:00:16]} Rh5
{[%clk 00:29:47]} {[%emt 00:02:19]} 25. Nxh5+ {[%clk 00:14:00]} {[%emt
00:00:43]} gxh5 {[%clk 00:30:09]} {[%emt 00:00:08]} 26. f4 {[%clk 00:13:47]}
{[%emt 00:00:42]} Rh8 {[%clk 00:28:16]} {[%emt 00:02:24]} 27. Rf2 {[%clk
00:12:28]} {[%emt 00:01:49]} b5 {[%clk 00:25:25]} {[%emt 00:03:21]} 28. Raf1
{[%clk 00:12:29]} {[%emt 00:00:29]} Rf8 {[%clk 00:22:49]} {[%emt 00:03:07]} 29.
f5 {[%clk 00:11:40]} {[%emt 00:01:20]} Qd8 {[%clk 00:22:04]} {[%emt 00:01:12]}
30. Bd1 {[%clk 00:11:35]} {[%emt 00:00:37]} bxc4 {[%clk 00:21:40]} {[%emt
00:00:54]} 31. f6+ {[%clk 00:09:09]} {[%emt 00:02:55]} Kh7 {[%clk 00:19:50]}
{[%emt 00:02:21]} 32. Rh2 {[%clk 00:09:19]} {[%emt 00:00:20]} Rh8 {[%clk
00:19:50]} {[%emt 00:00:30]} 33. Bxh5 {[%clk 00:08:36]} {[%emt 00:01:13]} Kg8
{[%clk 00:19:35]} {[%emt 00:00:44]} 34. g6 {[%clk 00:08:39]} {[%emt 00:00:27]}
Nd3 {[%clk 00:17:21]} {[%emt 00:02:45]} 35. Qg5 {[%clk 00:08:40]} {[%emt
00:00:28]} 1-0

[Event "Klubbmästerskap 2025 Torsdagar"]
[Site "Linköping, Sweden"]
[Date "2025.02.06"]
[Round "3.2"]
[White "Roginski, Hugo"]
[Black "Halvarsson, Peter"]
[Result "0-1"]
[TimeControl "90 min + 30 sec/move"]
[WhiteElo "1884"]
[BlackElo "1927"]

1. e4 {[%clk 01:30:57]} {[%emt 00:00:02]} d5 {[%clk 01:30:32]} {[%emt
00:00:29]} 2. exd5 {[%clk 01:31:21]} {[%emt 00:00:06]} Qxd5 {[%clk 01:30:57]}
{[%emt 00:00:05]} 3. Nc3 {[%clk 01:31:42]} {[%emt 00:00:09]} Qa5 {[%clk
01:31:23]} {[%emt 00:00:04]} 4. d4 {[%clk 01:32:08]} {[%emt 00:00:04]} c6
{[%clk 01:31:49]} {[%emt 00:00:04]} 5. Nf3 {[%clk 01:32:33]} {[%emt 00:00:05]}
Nf6 {[%clk 01:32:12]} {[%emt 00:00:06]} 6. Bf4 {[%clk 01:32:56]} {[%emt
00:00:07]} Bf5 {[%clk 01:31:09]} {[%emt 00:01:33]} 7. Bc4 {[%clk 01:27:38]}
{[%emt 00:05:49]} Nbd7 {[%clk 01:29:06]} {[%emt 00:02:33]} 8. O-O {[%clk
01:26:53]} {[%emt 00:01:15]} e6 {[%clk 01:26:50]} {[%emt 00:02:46]} 9. a3
{[%clk 01:24:16]} {[%emt 00:03:07]} Be7 {[%clk 01:18:05]} {[%emt 00:09:15]} 10.
Re1 {[%clk 01:22:41]} {[%emt 00:02:04]} O-O {[%clk 01:17:51]} {[%emt 00:00:44]}
11. Qe2 {[%clk 01:13:11]} {[%emt 00:09:59]} Rfe8 {[%clk 01:09:48]} {[%emt
00:08:33]} 12. Nd1 {[%clk 01:01:17]} {[%emt 00:12:24]} b5 {[%clk 01:02:39]}
{[%emt 00:07:40]} 13. Ba2 {[%clk 00:59:08]} {[%emt 00:02:38]} c5 {[%clk
01:01:19]} {[%emt 00:01:50]} 14. Ne3 {[%clk 00:50:48]} {[%emt 00:08:50]} c4
{[%clk 00:34:09]} {[%emt 00:27:42]} 15. Nxf5 {[%clk 00:38:23]} {[%emt
00:12:54]} exf5 {[%clk 00:34:17]} {[%emt 00:00:22]} 16. Ne5 {[%clk 00:38:44]}
{[%emt 00:00:08]} Qb6 {[%clk 00:30:13]} {[%emt 00:04:35]} 17. Nxd7 {[%clk
00:31:01]} {[%emt 00:08:13]} Nxd7 {[%clk 00:30:34]} {[%emt 00:00:09]} 18. Rad1
{[%clk 00:30:20]} {[%emt 00:01:10]} Rad8 {[%clk 00:25:55]} {[%emt 00:05:10]} 19.
c3 {[%clk 00:27:03]} {[%emt 00:03:46]} Nf6 {[%clk 00:24:17]} {[%emt 00:02:08]}
20. Qf3 {[%clk 00:25:23]} {[%emt 00:02:09]} Nd5 {[%clk 00:22:58]} {[%emt
00:01:50]} 21. Be5 {[%clk 00:22:27]} {[%emt 00:03:25]} g6 {[%clk 00:22:03]}
{[%emt 00:01:26]} 22. Bb1 {[%clk 00:19:52]} {[%emt 00:03:04]} f6 {[%clk
00:19:32]} {[%emt 00:03:01]} 23. Bg3 {[%clk 00:19:16]} {[%emt 00:01:05]} Qc6
{[%clk 00:17:23]} {[%emt 00:02:40]} 24. Bh4 {[%clk 00:17:33]} {[%emt 00:02:13]}
Qd7 {[%clk 00:15:26]} {[%emt 00:02:27]} 25. Bg3 {[%clk 00:15:35]} {[%emt
00:02:27]} Bf8 {[%clk 00:15:13]} {[%emt 00:00:44]} 26. h4 {[%clk 00:13:15]}
{[%emt 00:02:49]} h5 {[%clk 00:14:55]} {[%emt 00:00:49]} 27. Bh2 {[%clk
00:11:08]} {[%emt 00:02:37]} Kf7 {[%clk 00:15:15]} {[%emt 00:00:10]} 28. Bc2
{[%clk 00:10:16]} {[%emt 00:01:21]} a5 {[%clk 00:15:33]} {[%emt 00:00:13]} 29.
Ra1 {[%clk 00:09:11]} {[%emt 00:01:35]} Bh6 {[%clk 00:13:02]} {[%emt 00:03:01]}
30. Kf1 {[%clk 00:02:42]} {[%emt 00:06:59]} a4 {[%clk 00:10:04]} {[%emt
00:03:29]} 31. Rxe8 {[%clk 00:02:10]} {[%emt 00:01:01]} Rxe8 {[%clk 00:10:32]}
{[%emt 00:00:02]} 32. Re1 {[%clk 00:02:17]} {[%emt 00:00:23]} Rxe1+ {[%clk
00:10:00]} {[%emt 00:01:03]} 33. Kxe1 {[%clk 00:02:45]} {[%emt 00:00:02]} Bc1
{[%clk 00:10:07]} {[%emt 00:00:22]} 34. Qd1 {[%clk 00:01:59]} {[%emt 00:01:16]}
Bxb2 {[%clk 00:10:15]} {[%emt 00:00:22]} 35. Qb1 {[%clk 00:01:59]} {[%emt
00:00:30]} Qe8+ {[%clk 00:08:34]} {[%emt 00:02:11]} 36. Kf1 {[%clk 00:01:44]}
{[%emt 00:00:45]} Nxc3 {[%clk 00:08:28]} {[%emt 00:00:37]} 37. Be5 {[%clk
00:01:10]} {[%emt 00:01:03]} Nxb1 {[%emt 00:00:09]} 0-1

[Event "Klubbmästerskap 2025 Torsdagar"]
[Site "Linköping, Sweden"]
[Date "2025.02.06"]
[Round "3.3"]
[White "Löfgren, Vide"]
[Black "Skytt, Klas"]
[Result "1-0"]
[TimeControl "90 min + 30 sec/move"]
[WhiteElo "1928"]
[BlackElo "1764"]

1. d4 {[%clk 01:30:35]} {[%emt 00:00:25]} d5 {[%clk 01:30:35]} {[%emt
00:00:25]} 2. c4 {[%clk 01:29:48]} {[%emt 00:01:16]} c6 {[%clk 01:30:15]}
{[%emt 00:00:49]} 3. Nc3 {[%clk 01:29:53]} {[%emt 00:00:26]} Nf6 {[%clk
01:29:01]} {[%emt 00:01:45]} 4. Bg5 {[%clk 01:28:42]} {[%emt 00:01:41]} e6
{[%clk 01:28:49]} {[%emt 00:00:41]} 5. e3 {[%clk 01:27:12]} {[%emt 00:02:01]}
Nbd7 {[%clk 01:28:12]} {[%emt 00:01:07]} 6. cxd5 {[%clk 01:26:42]} {[%emt
00:01:00]} exd5 {[%clk 01:27:41]} {[%emt 00:01:01]} 7. Bd3 {[%clk 01:26:42]}
{[%emt 00:00:30]} Be7 {[%clk 01:25:47]} {[%emt 00:02:23]} 8. Nf3 {[%clk
01:26:24]} {[%emt 00:00:49]} O-O {[%clk 01:25:35]} {[%emt 00:00:41]} 9. O-O
{[%clk 01:26:23]} {[%emt 00:00:31]} Re8 {[%clk 01:24:09]} {[%emt 00:01:57]} 10.
Qc2 {[%clk 01:24:46]} {[%emt 00:02:07]} h6 {[%clk 01:23:23]} {[%emt 00:01:15]}
11. Bh4 {[%clk 01:24:45]} {[%emt 00:00:32]} Ne4 {[%clk 01:20:58]} {[%emt
00:02:55]} 12. Bxe7 {[%clk 01:24:56]} {[%emt 00:00:19]} Qxe7 {[%clk 01:21:12]}
{[%emt 00:00:15]} 13. Rab1 {[%clk 01:24:12]} {[%emt 00:01:15]} f5 {[%clk
01:13:05]} {[%emt 00:08:37]} 14. b4 {[%clk 01:24:00]} {[%emt 00:00:43]} Nxc3
{[%clk 01:08:04]} {[%emt 00:05:31]} 15. Qxc3 {[%clk 01:24:21]} {[%emt
00:00:09]} Nf6 {[%clk 01:07:47]} {[%emt 00:00:46]} 16. Rfc1 {[%clk 01:20:26]}
{[%emt 00:04:25]} a6 {[%clk 01:06:34]} {[%emt 00:01:43]} 17. a4 {[%clk
01:20:27]} {[%emt 00:00:30]} Ne4 {[%clk 01:06:02]} {[%emt 00:01:02]} 18. Qc2
{[%clk 01:10:26]} {[%emt 00:10:31]} Nd6 {[%clk 01:02:34]} {[%emt 00:03:58]} 19.
Ne5 {[%clk 01:07:10]} {[%emt 00:03:46]} Be6 {[%clk 00:59:26]} {[%emt 00:03:37]}
20. b5 {[%clk 00:53:30]} {[%emt 00:14:10]} axb5 {[%clk 00:56:22]} {[%emt
00:03:34]} 21. axb5 {[%clk 00:49:20]} {[%emt 00:04:40]} Nxb5 {[%clk 00:55:06]}
{[%emt 00:01:45]} 22. Bxb5 {[%clk 00:48:50]} {[%emt 00:01:01]} cxb5 {[%clk
00:55:05]} {[%emt 00:00:31]} 23. Rxb5 {[%clk 00:48:43]} {[%emt 00:00:38]} Rec8
{[%clk 00:54:14]} {[%emt 00:01:20]} 24. Qb2 {[%clk 00:47:56]} {[%emt 00:01:17]}
Rxc1+ {[%clk 00:51:34]} {[%emt 00:03:10]} 25. Qxc1 {[%clk 00:48:14]} {[%emt
00:00:12]} Rc8 {[%clk 00:50:15]} {[%emt 00:01:48]} 26. Qb2 {[%clk 00:47:08]}
{[%emt 00:01:32]} Rc7 {[%clk 00:48:46]} {[%emt 00:02:03]} 27. Nd3 {[%clk
00:46:53]} {[%emt 00:00:45]} Qf7 {[%clk 00:46:32]} {[%emt 00:02:43]} 28. Rb6
{[%clk 00:39:10]} {[%emt 00:08:13]} Bc8 {[%clk 00:38:10]} {[%emt 00:08:52]} 29.
h3 {[%clk 00:36:24]} {[%emt 00:03:16]} Rc6 {[%clk 00:37:04]} {[%emt 00:01:35]}
30. Rb5 {[%clk 00:18:38]} {[%emt 00:18:17]} Rc7 {[%clk 00:33:08]} {[%emt
00:04:26]} 31. Qb3 {[%clk 00:18:43]} {[%emt 00:00:25]} Be6 {[%clk 00:30:36]}
{[%emt 00:03:02]} 32. Nf4 {[%clk 00:17:18]} {[%emt 00:01:54]} Rc1+ {[%clk
00:25:08]} {[%emt 00:05:59]} 33. Kh2 {[%clk 00:17:30]} {[%emt 00:00:18]} Bc8
{[%clk 00:25:18]} {[%emt 00:00:20]} 34. Rxd5 {[%clk 00:17:16]} {[%emt
00:00:43]} Qc7 {[%clk 00:24:41]} {[%emt 00:01:07]} 35. Rc5+ {[%clk 00:17:15]}
{[%emt 00:00:32]} 1-0

[Event "Klubbmästerskap 2025 Torsdagar"]
[Site "Linköping, Sweden"]
[Date "2025.02.06"]
[Round "3.4"]
[White "Lilljebjörn, Erik Gustaf"]
[Black "Stefanovic, Dragan 1958"]
[Result "1/2-1/2"]
[TimeControl "90 min + 30 sec/move"]
[WhiteElo "1783"]
[BlackElo "1791"]

1. e4 {[%clk 01:30:57]} {[%emt 00:00:02]} d6 {[%clk 01:30:23]} {[%emt
00:00:38]} 2. d4 {[%clk 01:31:20]} {[%emt 00:00:07]} Nf6 {[%clk 01:30:44]}
{[%emt 00:00:10]} 3. Nc3 {[%clk 01:31:41]} {[%emt 00:00:09]} g6 {[%clk
01:31:07]} {[%emt 00:00:07]} 4. Bg5 {[%clk 01:31:18]} {[%emt 00:00:52]} Bg7
{[%clk 01:31:21]} {[%emt 00:00:16]} 5. e5 {[%clk 01:31:29]} {[%emt 00:00:20]}
dxe5 {[%clk 01:22:05]} {[%emt 00:09:46]} 6. dxe5 {[%clk 01:31:50]} {[%emt
00:00:09]} Nfd7 {[%clk 01:20:54]} {[%emt 00:01:40]} 7. e6 {[%clk 01:21:10]}
{[%emt 00:11:10]} Bxc3+ {[%clk 01:17:57]} {[%emt 00:03:28]} 8. bxc3 {[%clk
01:21:23]} {[%emt 00:00:17]} fxe6 {[%clk 01:18:18]} {[%emt 00:00:09]} 9. Qg4
{[%clk 01:13:01]} {[%emt 00:08:51]} Nf6 {[%clk 01:17:23]} {[%emt 00:01:25]} 10.
Bxf6 {[%clk 01:03:52]} {[%emt 00:09:39]} exf6 {[%clk 01:17:08]} {[%emt
00:00:45]} 11. Rd1 {[%clk 01:02:41]} {[%emt 00:01:40]} Qe7 {[%clk 01:17:30]}
{[%emt 00:00:07]} 12. Bd3 {[%clk 00:58:40]} {[%emt 00:04:32]} Nc6 {[%clk
01:06:23]} {[%emt 00:11:37]} 13. Nf3 {[%clk 00:55:56]} {[%emt 00:03:13]} e5
{[%clk 01:05:19]} {[%emt 00:01:35]} 14. Qh4 {[%clk 00:51:34]} {[%emt 00:04:52]}
Be6 {[%clk 01:01:48]} {[%emt 00:04:01]} 15. Bxg6+ {[%clk 00:50:42]} {[%emt
00:01:22]} Kf8 {[%clk 00:58:20]} {[%emt 00:03:58]} 16. Be4 {[%clk 00:36:41]}
{[%emt 00:14:32]} Bxa2 {[%clk 00:45:42]} {[%emt 00:13:07]} 17. O-O {[%clk
00:36:27]} {[%emt 00:00:44]} Be6 {[%clk 00:44:21]} {[%emt 00:01:51]} 18. Ne1
{[%clk 00:35:02]} {[%emt 00:01:55]} Rd8 {[%clk 00:36:28]} {[%emt 00:08:23]} 19.
Nd3 {[%clk 00:34:27]} {[%emt 00:01:05]} Rg8 {[%clk 00:33:48]} {[%emt 00:03:10]}
20. Qxh7 {[%clk 00:27:07]} {[%emt 00:07:51]} Qxh7 {[%clk 00:33:25]} {[%emt
00:00:52]} 21. Bxh7 {[%clk 00:27:34]} {[%emt 00:00:03]} 1/2-1/2

[Event "Klubbmästerskap 2025 Torsdagar"]
[Site "Linköping, Sweden"]
[Date "2025.02.06"]
[Round "3.5"]
[White "Karlsson, Henrik 1974"]
[Black "Ahlström, Per"]
[Result "0-1"]
[TimeControl "90 min + 30 sec/move"]
[WhiteElo "1804"]
[BlackElo "1820"]

1. e4 {[%clk 01:30:51]} {[%emt 00:00:08]} c5 {[%clk 01:30:39]} {[%emt
00:00:21]} 2. Nf3 {[%clk 01:31:11]} {[%emt 00:00:09]} d6 {[%clk 01:30:25]}
{[%emt 00:00:46]} 3. d4 {[%clk 01:31:28]} {[%emt 00:00:13]} cxd4 {[%clk
01:30:50]} {[%emt 00:00:05]} 4. Nxd4 {[%clk 01:31:49]} {[%emt 00:00:08]} Nf6
{[%clk 01:31:15]} {[%emt 00:00:05]} 5. Nc3 {[%clk 01:32:11]} {[%emt 00:00:08]}
g6 {[%clk 01:31:16]} {[%emt 00:00:29]} 6. Be3 {[%clk 01:31:30]} {[%emt
00:01:11]} Bg7 {[%clk 01:31:36]} {[%emt 00:00:10]} 7. Bc4 {[%clk 01:31:14]}
{[%emt 00:00:47]} O-O {[%clk 01:24:17]} {[%emt 00:07:48]} 8. f3 {[%clk
01:30:28]} {[%emt 00:01:17]} Nc6 {[%clk 01:22:36]} {[%emt 00:02:09]} 9. Qd2
{[%clk 01:28:50]} {[%emt 00:02:09]} Nxd4 {[%clk 01:10:17]} {[%emt 00:12:49]} 10.
Bxd4 {[%clk 01:28:20]} {[%emt 00:01:00]} Qa5 {[%clk 01:10:23]} {[%emt
00:00:24]} 11. O-O-O {[%clk 01:26:55]} {[%emt 00:01:54]} Be6 {[%clk 01:09:56]}
{[%emt 00:00:57]} 12. Bxe6 {[%clk 01:26:58]} {[%emt 00:00:27]} fxe6 {[%clk
01:10:20]} {[%emt 00:00:06]} 13. g4 {[%clk 01:24:16]} {[%emt 00:03:12]} b5
{[%clk 01:03:43]} {[%emt 00:07:07]} 14. h4 {[%clk 01:23:51]} {[%emt 00:00:55]}
b4 {[%clk 00:57:09]} {[%emt 00:07:05]} 15. Nb1 {[%clk 01:22:21]} {[%emt
00:01:59]} Rac8 {[%clk 00:57:05]} {[%emt 00:00:33]} 16. h5 {[%clk 01:19:54]}
{[%emt 00:02:59]} Rc4 {[%clk 00:48:11]} {[%emt 00:09:24]} 17. hxg6 {[%clk
01:12:44]} {[%emt 00:07:40]} hxg6 {[%clk 00:47:27]} {[%emt 00:01:13]} 18. Qh2
{[%clk 01:03:13]} {[%emt 00:10:02]} Qc7 {[%clk 00:23:31]} {[%emt 00:24:26]} 19.
e5 {[%clk 00:52:28]} {[%emt 00:11:15]} dxe5 {[%clk 00:10:12]} {[%emt 00:13:48]}
20. Qxe5 {[%clk 00:49:18]} {[%emt 00:03:41]} Rxc2# {[%emt 00:00:21]} 0-1

[Event "Klubbmästerskap 2025 Torsdagar"]
[Site "Linköping, Sweden"]
[Date "2025.02.06"]
[Round "3.6"]
[White "Leijon, Noah"]
[Black "Snällfot, Magnus"]
[Result "0-1"]
[TimeControl "90 min + 30 sec/move"]
[WhiteElo "1803"]
[BlackElo "1778"]

1. e4 {[%clk 01:30:58]} {[%emt 00:00:02]} e5 {[%clk 01:29:57]} {[%emt
00:01:02]} 2. Nf3 {[%clk 01:31:23]} {[%emt 00:00:06]} Nc6 {[%clk 01:30:15]}
{[%emt 00:00:12]} 3. Bc4 {[%clk 01:31:48]} {[%emt 00:00:05]} Nf6 {[%clk
01:30:28]} {[%emt 00:00:17]} 4. d3 {[%clk 01:32:11]} {[%emt 00:00:07]} Be7
{[%clk 01:29:42]} {[%emt 00:01:17]} 5. c3 {[%clk 01:31:55]} {[%emt 00:00:46]}
d5 {[%clk 01:28:43]} {[%emt 00:01:28]} 6. exd5 {[%clk 01:30:44]} {[%emt
00:01:41]} Nxd5 {[%clk 01:28:55]} {[%emt 00:00:18]} 7. Qb3 {[%clk 01:26:26]}
{[%emt 00:04:48]} O-O {[%clk 01:29:05]} {[%emt 00:00:20]} 8. Bxd5 {[%clk
01:21:30]} {[%emt 00:05:26]} Na5 {[%clk 01:28:26]} {[%emt 00:01:10]} 9. Bxf7+
{[%clk 01:20:10]} {[%emt 00:01:49]} Rxf7 {[%clk 01:28:22]} {[%emt 00:00:34]} 10.
Qb5 {[%clk 01:19:46]} {[%emt 00:00:55]} c6 {[%clk 01:09:38]} {[%emt 00:19:13]}
11. Qxe5 {[%clk 01:19:11]} {[%emt 00:01:05]} Bf6 {[%clk 01:07:45]} {[%emt
00:02:23]} 12. Qe2 {[%clk 01:12:41]} {[%emt 00:07:00]} Re7 {[%clk 00:58:42]}
{[%emt 00:09:33]} 13. Be3 {[%clk 01:12:09]} {[%emt 00:01:02]} b5 {[%clk
00:52:57]} {[%emt 00:06:15]} 14. O-O {[%clk 01:08:50]} {[%emt 00:03:49]} Bg4
{[%clk 00:49:50]} {[%emt 00:03:37]} 15. Nbd2 {[%clk 01:01:46]} {[%emt
00:07:35]} Qd5 {[%clk 00:44:47]} {[%emt 00:05:33]} 16. Ne4 {[%clk 00:52:29]}
{[%emt 00:09:46]} Rf8 {[%clk 00:36:36]} {[%emt 00:08:41]} 17. Rfd1 {[%clk
00:24:56]} {[%emt 00:28:03]} b4 {[%clk 00:30:46]} {[%emt 00:06:20]} 18. cxb4
{[%clk 00:18:13]} {[%emt 00:07:13]} Nb7 {[%clk 00:26:51]} {[%emt 00:04:25]} 19.
Nxf6+ {[%clk 00:13:44]} {[%emt 00:04:58]} Rxf6 {[%clk 00:26:44]} {[%emt
00:00:37]} 20. b3 {[%clk 00:12:49]} {[%emt 00:01:25]} Qh5 {[%clk 00:21:51]}
{[%emt 00:05:20]} 21. Rac1 {[%clk 00:09:10]} {[%emt 00:04:12]} Rxf3 {[%clk
00:20:35]} {[%emt 00:01:46]} 22. gxf3 {[%clk 00:08:07]} {[%emt 00:01:33]} Bxf3
{[%clk 00:20:47]} {[%emt 00:00:18]} 23. Qc2 {[%clk 00:07:47]} {[%emt 00:00:51]}
Qh3 {[%clk 00:20:43]} {[%emt 00:00:33]} 0-1

[Event "Klubbmästerskap 2025 Torsdagar"]
[Site "Linköping, Sweden"]
[Date "2025.02.06"]
[Round "3.7"]
[White "Garner, Mårten"]
[Black "Ekman, Theo"]
[Result "0-1"]
[TimeControl "90 min + 30 sec/move"]
[WhiteElo "1841"]
[BlackElo "1806"]

1. d4 {[%clk 01:30:21]} {[%emt 00:00:38]} d5 {[%clk 01:30:52]} {[%emt
00:00:08]} 2. c4 {[%clk 01:30:48]} {[%emt 00:00:04]} Nc6 {[%clk 01:31:17]}
{[%emt 00:00:05]} 3. Nf3 {[%clk 01:30:37]} {[%emt 00:00:41]} Bg4 {[%clk
01:31:39]} {[%emt 00:00:08]} 4. Bf4 {[%clk 01:30:02]} {[%emt 00:01:02]} e6
{[%clk 01:31:57]} {[%emt 00:00:14]} 5. Nc3 {[%clk 01:29:50]} {[%emt 00:00:42]}
Bxf3 {[%emt 00:03:29]} 6. gxf3 {[%emt 00:00:35]} Nge7 {[%clk 01:25:05]} {[%emt
00:03:18]} 7. e3 {[%clk 01:29:05]} {[%emt 00:01:15]} Ng6 {[%clk 01:24:24]}
{[%emt 00:01:10]} 8. Bg3 {[%clk 01:29:11]} {[%emt 00:00:25]} h5 {[%clk
01:23:04]} {[%emt 00:01:50]} 9. cxd5 {[%clk 01:26:42]} {[%emt 00:03:00]} exd5
{[%clk 01:23:00]} {[%emt 00:00:32]} 10. h4 {[%clk 01:25:37]} {[%emt 00:01:36]}
Bd6 {[%clk 01:14:15]} {[%emt 00:09:15]} 11. Qb3 {[%clk 01:24:15]} {[%emt
00:01:51]} Bxg3 {[%clk 01:11:36]} {[%emt 00:03:09]} 12. fxg3 {[%clk 01:24:33]}
{[%emt 00:00:12]} Nce7 {[%clk 01:08:32]} {[%emt 00:03:34]} 13. Qxb7 {[%clk
01:12:06]} {[%emt 00:12:57]} c6 {[%clk 01:08:44]} {[%emt 00:00:17]} 14. Qa6
{[%clk 01:11:42]} {[%emt 00:00:54]} Qc7 {[%clk 00:58:05]} {[%emt 00:11:11]} 15.
f4 {[%clk 01:10:37]} {[%emt 00:01:34]} Rb8 {[%clk 00:55:03]} {[%emt 00:03:33]}
16. b3 {[%clk 01:07:08]} {[%emt 00:03:59]} Nf5 {[%clk 00:49:42]} {[%emt
00:05:51]} 17. Kf2 {[%clk 01:06:49]} {[%emt 00:00:48]} O-O {[%clk 00:44:38]}
{[%emt 00:05:34]} 18. Be2 {[%clk 01:03:59]} {[%emt 00:03:20]} Rfe8 {[%clk
00:32:15]} {[%emt 00:12:53]} 19. Nd1 {[%clk 01:03:32]} {[%emt 00:00:58]} Re6
{[%clk 00:17:03]} {[%emt 00:15:42]} 20. Bxh5 {[%clk 01:00:41]} {[%emt
00:03:21]} Rbe8 {[%clk 00:12:04]} {[%emt 00:05:30]} 21. Bg4 {[%clk 00:55:45]}
{[%emt 00:05:22]} Nxg3 {[%clk 00:09:34]} {[%emt 00:03:02]} 22. Bxe6 {[%clk
00:36:09]} {[%emt 00:20:06]} Nxh1+ {[%clk 00:09:52]} {[%emt 00:00:13]} 23. Kg1
{[%clk 00:32:08]} {[%emt 00:04:31]} Rxe6 {[%clk 00:09:42]} {[%emt 00:00:40]} 24.
Kxh1 {[%clk 00:29:50]} {[%emt 00:02:48]} Nxh4 {[%clk 00:08:47]} {[%emt
00:01:26]} 25. Rc1 {[%clk 00:29:18]} {[%emt 00:01:01]} Rg6 {[%clk 00:06:06]}
{[%emt 00:03:10]} 26. Nf2 {[%clk 00:21:19]} {[%emt 00:08:27]} Qd7 {[%clk
00:03:01]} {[%emt 00:03:38]} 27. b4 {[%clk 00:10:19]} {[%emt 00:11:31]} Rg2
{[%clk 00:01:21]} {[%emt 00:02:08]} 28. Qf1 {[%clk 00:10:10]} {[%emt 00:00:40]}
Rxf2 {[%clk 00:00:54]} {[%emt 00:00:57]} 29. Qxf2 {[%clk 00:10:08]} {[%emt
00:00:32]} Qh3+ {[%clk 00:01:14]} {[%emt 00:00:09]} 30. Qh2 {[%clk 00:09:15]}
{[%emt 00:01:23]} Qf3+ {[%clk 00:01:34]} {[%emt 00:00:09]} 31. Kg1 {[%clk
00:08:38]} {[%emt 00:01:09]} Qxe3+ {[%clk 00:01:50]} {[%emt 00:00:13]} 32. Qf2
{[%clk 00:07:27]} {[%emt 00:01:41]} Qxc1+ {[%clk 00:02:03]} {[%emt 00:00:17]}
33. Kh2 {[%clk 00:07:55]} {[%emt 00:00:03]} Qd2 {[%clk 00:02:13]} {[%emt
00:00:17]} 0-1